Cogmind - Beta 15 @@@ ROGUE MODE // 2025.10.02 @ 01:13:02 Player: Runagate Result: Destroyed by as-11527 with Assembled Blade Performance ------------- Evolutions (0) 0 Regions Visited (2) 400 Robots Destroyed (21) 105 Value Destroyed (539) 539 Prototype IDs (2) 40 Alien Tech Used (0) 0 Bonus (0) 0 TOTAL SCORE: 1084 Bonus ------- None Cogmind --------- Core Integrity 0/250 Matter 291/300 Energy 241/250 System Corruption 0% Temperature Cool (0) Movement Walking (120) Location -10/Mines Parts ------- > --- POWER (1) -------- Ion Engine > --- PROPULSION (2) --- Aluminum Leg Aluminum Leg > --- UTILITY (2) ------ Medium Storage Unit Seismic Detector > --- WEAPON (2) ------- Small Laser Assault Rifle > --- INVENTORY (10) --- Aluminum Leg Aluminum Leg Aluminum Leg Heat Sink High-capacity Battery (250) Light Armor Plating Assault Rifle Grenade Launcher Peak State ------------ > --- POWER ------------ Ion Engine > --- PROPULSION ------- Aluminum Leg Aluminum Leg > --- UTILITY ---------- Medium Storage Unit Seismic Detector > --- WEAPON ----------- Medium Laser Assault Rifle > --- INVENTORY -------- Ion Engine Aluminum Leg Aluminum Leg Aluminum Leg Small Storage Unit Large Battery Light Armor Plating Small Laser Assault Rifle Assault Rifle [Rating: 8] Favorites ----------- Power Ion Engine Engine Ion Engine Propulsion Aluminum Leg Leg Aluminum Leg Utility Seismic Detector Device Seismic Detector Storage Medium Storage Unit Weapon Assault Rifle Energy Gun Medium Laser Ballistic Gun Assault Rifle Build | -11 -10 -10 ------- Run | Yrd Mat Min Slots Evolved . | . . . Power . | . . . Propulsion . | . . . Utility . | . . . Weapon . | . . . Parts Attached 20 | 7 12 1 Power 3 | 1 2 . Engine 3 | 1 2 . Core . | . . . Reactor . | . . . Propulsion 8 | 2 6 . Treads . | . . . Leg 8 | 2 6 . Wheel . | . . . Hover . | . . . Flight . | . . . Utility 3 | 2 1 . Device 1 | 1 . . Storage 2 | 1 1 . Processor . | . . . Hackware . | . . . Protection . | . . . Artifact . | . . . Weapon 6 | 2 3 1 Energy Gun 3 | 1 2 . Energy Cannon . | . . . Ballistic Gun 3 | 1 1 1 Ballistic Cannon . | . . . Launcher . | . . . Special Weapon . | . . . Impact Weapon . | . . . Slashing Weapon . | . . . Piercing Weapon . | . . . Special Melee Weapon . | . . . Unidentified Prototypes . | . . . Parts Lost 4 | . 2 2 Power 1 | . 1 . Propulsion 1 | . 1 . Utility . | . . . Weapon 2 | . . 2 Highest Loss Streak 2 | . 2 2 To Critical Strikes . | . . . Average Backups 7 | 1 8 8 Power . | . . . Propulsion 1 | . 1 3 Utility 2 | . 2 3 Weapon 2 | . 3 2 Tool/Special . | . . . Unused Backups 6 | . 2 4 Power . | . . . Propulsion . | . . . Utility 5 | . 2 3 Weapon 1 | . . 1 Tool/Special . | . . . Average Slot Usage (%) 98 | . 98 99 Engine 13 | . 13 14 Leg 27 | . 27 28 Device 13 | . 13 14 Storage 14 | . 14 14 Energy Gun 13 | . 14 13 Ballistic Gun 13 | . 13 14 Peak Build Rating 8 | 7 8 8 Average Rating 7 | 5 7 7 On Entrance 5 | . 7 8 Naked Turns . | . . . Heaviest Build 20 | 15 20 19 Greatest Support 20 | 20 20 20 Greatest Overweight (x) 1 | . 1 . Average Overweight (x) . | . . . Largest Inventory Capacity 10 | 8 10 10 Average Capacity 9 | 7 9 10 Most Carried 10 | 2 10 10 Average Carried 7 | 1 8 8 Final Capacity 10 | 8 10 10 Final Carried 10 | 2 10 8 Class Distribution -------------------- 76% | Mutant 23% | Scavenger-Mutant Dominant Class ---------------- Mutant | -10/Materials Scavenger-Mutant | -10/Mines Resources | -11 -10 -10 ----------- Run | Yrd Mat Min Matter Collected 719 | 291 393 35 Remotely . | . . . Salvage Created 803 | 130 571 102 Parts 39 | 12 27 . Haulers Intercepted . | . . . Recyclers Shooed 1 | . 1 . Parts Field Recycled . | . . . Retrieved Matter . | . . . Parts Self-Destructed . | . . . Prevented . | . . . Kills | -11 -10 -10 ------- Run | Yrd Mat Min Combat Hostiles Destroyed 15 | . 13 2 Guns 15 | . 13 2 Classes Destroyed 5 | 2 3 . Tunneler 3 | 3 . . Recycler 2 | 1 1 . Watcher 1 | . 1 . Swarmer 3 | . 3 . Grunt 12 | . 10 2 Best Kill Streak 4 | 3 4 2 Combat Bots Only 4 | . 4 2 Max Kills in Single Turn 1 | 1 1 1 Gunslinging . | . . . Exploded . | . . . Melee . | . . . Uniques/NPCs Destroyed . | . . . Combat | -11 -10 -10 -------- Run | Yrd Mat Min Hostile Shots Fired 108 | . 87 21 Missed 28 | . 25 3 Hits 80 | . 62 18 Melee 3 | . . 3 Projectile 77 | . 62 15 Critical Strikes 2 | . . 2 Damage Taken 1146 | . 835 311 Core 275 | . 196 79 Absorbed by Shields . | . . . Regen/Repaired (Parts) 93 | . 93 . Core Remaining (%) 100 | 100 . . Volleys Fired 79 | 7 61 11 Largest 2 | 2 2 2 Hottest 70 | 70 70 60 Shots Fired 157 | 14 122 21 Gun 157 | 14 122 21 Cannon . | . . . Launcher . | . . . Special . | . . . Kinetic 79 | 7 61 11 Thermal 78 | 7 61 10 Explosive . | . . . Electromagnetic . | . . . Robot Hit Streak 14 | 6 14 8 Robot Miss Streak 3 | 3 3 2 Penetration Max . | . . . Secondary Targets 2 | . 2 . Max Gunslinging Chain 1 | . 1 . Shots Hit Robots 115 | 9 90 16 Core Hits 42 | 4 31 7 Critical Kills . | . . . Critical Parts Destroyed 1 | 1 . . Critical Strikes 3 | 2 1 . Burn 2 | 1 1 . Destroy 1 | 1 . . Melee Attacks . | . . . Impact . | . . . Slashing . | . . . Piercing . | . . . Sneak Attacks . | . . . Combat Hostiles . | . . . Follow-up Attacks . | . . . Damage Inflicted 1460 | 120 1139 201 Guns 1446 | 120 1133 193 Cannons . | . . . Explosions . | . . . Melee . | . . . Ramming 14 | . 6 8 Kinetic 691 | 56 543 92 Thermal 755 | 64 590 101 Explosive . | . . . Electromagnetic . | . . . Impact . | . . . Slashing . | . . . Piercing . | . . . Highest Corruption . | . . . Average Corruption . | . . . Corruption Purged . | . . . Corruption Blocked . | . . . Overload Shots . | . . . Overflow Damage . | . . . Projectiles . | . . . Explosions . | . . . Melee . | . . . Knockbacks . | . . . Impact . | . . . Kinetic . | . . . Secondary . | . . . Self-Inflicted Damage . | . . . Shots . | . . . Rammed . | . . . Targets Rammed 3 | . 1 2 Kicked 3 | . 1 2 Crushed . | . . . Highest Temperature 145 | 45 145 96 Average Temperature 50 | 19 52 64 Received Heat Transfer 555 | . 399 156 Siege Activations . | . . . Martial Activations . | . . . Shielding Activations . | . . . Robots Disrupted . | . . . Combat Hostiles . | . . . Robots Corrupted . | . . . Combat Hostiles . | . . . Parts Fried . | . . . Impact Corruptions . | . . . Robots Melted . | . . . Combat Hostiles . | . . . Parts Melted 2 | . 1 1 Heat Transferred 2049 | 259 1565 225 Parts Sabotaged . | . . . Parts Stolen . | . . . Parts Stripped . | . . . Power Chain Reactions . | . . . Alert | -11 -10 -10 ------- Run | Yrd Mat Min Maximum Alert Level . | . . . Low Security (%) 100 | 100 100 100 Level 1 . | . . . Level 2 . | . . . Level 3 . | . . . Level 4 . | . . . Level 5 . | . . . High Security . | . . . Max Security . | . . . Peak Influence 115 | 15 115 40 Initial 8 | . 3 8 Average 31 | 2 36 15 Influence Increases 438 | 20 368 50 Destroy 0b10 Robot/C 300 | . 260 40 Destroy 0b10 Robot/NC 30 | 20 10 . Destroy Leader 72 | . 62 10 Successful Hack 21 | . 21 . Lose Combat Pursuer 15 | . 15 . Influence Decreases 438 | 15 351 72 Entered New Map 16 | . 2 14 Time Decay 394 | 15 329 50 Lost Part 28 | . 20 8 Squads Dispatched 2 | . 2 . Investigation . | . . . Extermination . | . . . Reinforcement 2 | . 2 . Assault . | . . . Garrison . | . . . Intercept . | . . . Searches Triggered . | . . . Construction Impeded . | . . . Haulers Reinforced . | . . . Active Scanning Responses . | . . . Cargo Convoy Interrupts . | . . . Stealth | -11 -10 -10 --------- Run | Yrd Mat Min Distress Signals 1 | . 1 . Communications Jammed . | . . . Distress Signals . | . . . Times Spotted 29 | . 26 3 Peak Tracking Total 4 | . 4 2 Tactical Retreats 1 | . 1 . Traps | -11 -10 -10 ------- Run | Yrd Mat Min Traps Triggered 4 | . 4 . Indirectly . | . . . Trap Hack Attempts . | . . . Triggered . | . . . Disarmed . | . . . Reprogrammed . | . . . Reused . | . . . Traps Extracted . | . . . Installed . | . . . Triggered . | . . . Machines | -11 -10 -10 ---------- Run | Yrd Mat Min Machines Disabled . | . . . Max in Single Turn . | . . . Machines Repaired . | . . . Machines Dismantled . | . . . Machines Sabotaged . | . . . Overloaded Fab Kills . | . . . Hacking | -11 -10 -10 --------- Run | Yrd Mat Min Machines Accessed 6 | . 6 . Terminals 5 | . 5 . Fabricators . | . . . Repair Stations 1 | . 1 . Recycling Units . | . . . Scanalyzers . | . . . Garrison Access . | . . . Total Hacks 15 | . 15 . Successful 10 | . 10 . Failed 5 | . 5 . Catastrophic 2 | . 2 . Database Lockouts . | . . . Manual 9 | . 9 . Terminals 10 | . 10 . Fabricators . | . . . Repair Stations 5 | . 5 . Recycling Units . | . . . Scanalyzers . | . . . Garrison Access . | . . . Terminal Hacks 1 | . 1 . Prototype ID Bank 1 | . 1 . Fabricator Hacks . | . . . Repair Station Hacks 4 | . 4 . Scan Component 2 | . 2 . Repair 2 | . 2 . Recycling Unit Hacks . | . . . Scanalyzer . | . . . Garrison Access Hacks . | . . . Unauthorized Hacks 5 | . 5 . Terminals 5 | . 5 . Botnet 5 | . 5 . Fabricators . | . . . Repair Stations . | . . . Recycling Units . | . . . Scanalyzers . | . . . Garrison Access . | . . . Data Cores Recovered . | . . . Used . | . . . Hacking Detections 3 | . 3 . Full Trace Events . | . . . Feedback Events . | . . . Feedback Blocked . | . . . Robot Schematics Acquired . | . . . Robots Built . | . . . Authchips . | . . . Time . | . . . Total Robot Build Rating . | . . . Part Schematics Acquired . | . . . Parts Built . | . . . Authchips . | . . . Time . | . . . Total Part Build Rating . | . . . Parts Repaired 2 | . 2 . Time 52 | . 52 . Parts Recycled . | . . . Recycled Matter . | . . . Retrieved Matter . | . . . Retrieved Components . | . . . Parts Scanalyzed . | . . . Part Schematics Acquired . | . . . Parts Damaged . | . . . Bothacking | -11 -10 -10 ------------ Run | Yrd Mat Min Used RIF Installer . | . . . Robots Hacked . | . . . Non-combat . | . . . Combat . | . . . Robot Hacks Applied . | . . . Relay Couplers Released . | . . . Fabnet Peak Effective % . | . . . Robots Rewired . | . . . Allies Hacked . | . . . Hacks Repelled . | . . . Allies | -11 -10 -10 -------- Run | Yrd Mat Min Total Allies . | . . . Largest Group . | . . . Highest-Rated Group . | . . . Highest-Rated Ally . | . . . Total Orders . | . . . Ally Attacks . | . . . Total Damage . | . . . Kills . | . . . Allies Corrupted . | . . . Allies Melted . | . . . Intel | -11 -10 -10 ------- Run | Yrd Mat Min Active Infowar (turns) 1135 | 13 985 137 Seismic 1135 | 13 985 137 Robot Analysis Total . | . . . Derelict Logs Recovered . | . . . Drone Launches . | . . . Drone Recoveries . | . . . Exploration | -11 -10 -10 ------------- Run | Yrd Mat Min Turns Passed 1239 | 91 1011 137 Spaces Moved 669 | 48 537 84 Core 4 | 4 . . Treads . | . . . Legs 665 | 44 537 84 Wheels . | . . . Hover . | . . . Flight . | . . . Fastest Speed 50 | 50 120 120 Average Speed 120 | 114 120 120 Slowest Speed 190 | 120 190 120 Overloaded Moves . | . . . Propulsion Burnouts . | . . . Robots Hopped . | . . . Potential Cave-ins . | . . . Cave-ins Triggered . | . . . Exploration Rate (%) 34 | 4 78 20 Regions Visited 2 Branch Regions 1 Pre-discovered Areas . | . . . Known Exits Taken . | . . . Unknown Exits Taken 2 | 1 1 . Scrap Searched . | . . . Spaces Dug . | . . . Terrain Destroyed . | . . . Melee . | . . . Projectile . | . . . AOE . | . . . Terrain Rammed . | . . . Walls Destroyed . | . . . Machines Disabled . | . . . Actions | -11 -10 -10 --------- Run | Yrd Mat Min Total 939 | 66 772 101 Wait 142 | 3 137 2 Move 667 | 47 536 84 Hop . | . . . Pick Up 10 | 2 8 . Fast Attach 17 | 7 10 . Attach 2 | . . 2 Detach . | . . . Swap 12 | . 12 . Drop 7 | . 7 . Fire 79 | 7 61 11 Melee . | . . . Ram . | . . . Kick 3 | . 1 2 Crush . | . . . Escape Stasis . | . . . Rewire . | . . . Trap . | . . . Miscellaneous . | . . . Route ------- -11/Scrapyard -10/Materials (discovered 2 exits: [*Mat] / [*Min]) -10/Mines History --------- Turn | Location | Event 3 | -11/Scrapyard | Discovered new exit (range 15) 92 | -11/Scrapyard | Entered Materials 309 | -10/Materials | Build established: Mutant 778 | -10/Materials | Repaired Seismic Detector 806 | -10/Materials | Repaired Assault Rifle 811 | -10/Materials | Discovered new exit (range 5) 906 | -10/Materials | Core integrity fell below 50% 1093 | -10/Materials | Discovered new exit (range 9) 1103 | -10/Materials | Entered Mines 1118 | -10/Mines | Core integrity fell below 20% 1130 | -10/Mines | Assembled infested the area 1240 | -10/Mines | Destroyed by as-11527 with Assembled Blade Last Messages --------------- 01080_ Kicked R-06 Scavenger out of the way. 01080_ K-01 Serf cleans the Material Compactor. 01093_ EXIT=FOUND LOCATION=UNKNOWN GOAL=ESCAPE Something is scanning the area. 01104_ Critical hit (Burn: +37). 01107_ Sml. Laser destroyed. 01111_ Assault Rifle destroyed. 01114_ G-34 Mercenary destroyed. 01119_ Critical hit (Burn: +37). 01126_ Aluminum Leg melted. 01126_ G-47 Trooper destroyed. 01130_ ALERT: Infestation in the mines, dispatching Demolisher response squad. 01131_ Acquired 35 matter. 01153_ K-01 Serf collects debris. 01155_ Kicked K-01 Serf. 01156_ Kicked K-01 Serf out of the way. Map ----- +----------------------------------------------------+ | ???????????????????????????????#%#????# """ """ "" | | ???????????????????????????????# #????# """ """ "" | | ????????????????????????????#### #????# """ """ "" | | ????????????????????????????# #????# | | ????????????????????????????# ###??############## | | ??????????????????????????### #???? ##?????????? | | ?????????????????????????## #??? #?????????? | | ?????????????????????????# #### #?????????? | | ?????????????????????????# ## #??????????? | | ?????????????????????????## % #??????????? | | ????????????????? ????????## ##?????????? | | ?????????????????? ????????## #?????????? | | ?????????????????? ????????## % #?????????? | | ??????????????????? ???????# ## #?????????? | | ??????????????????? ???????# ##?# ##?????????? | | ???????????????????# ??????## ##??? #??????????? | | ???????????????????# ???????## #???? #??????????? | | ???????????????????# ???????# #???? #??????????? | | ???????????????????# ???????# ####?? #??????????? | | ???????????????????# ??????# #?? ??????????? | | ???????????????????? ??????### #?? #??????????? | | ????????????????????? ???????# #?? #??????????? | | ??????????????????????#!######## #??? ??????????? | | ??????????????????????#*% #??????????????? | | ??????????????????????###a## ### #??????????????? | | ????????????????????????#@## #?# ????????????? | | ????????????????????????# ## #?# % #??????????? | | ????????????????????????# ## #?# ##??????????? | | ????????????????????????# ## ? #???????????? | | ????????????????????????# ####?# ##???????????? | | ????????????????????????# #????# ##????????????? | | ???????????????????????? #????? #?????????????? | | ????????????????????????###????? #?????????????? | | ???????????????????????????????? ##?????????????? | | ????????????????????????????????# #??????????????? | | ????????????????????????????????? ???????????????? | | ?????????????????????????????????#???????????????? | | ?????????????????????????????????????????????????? | | ?????????????????????????????????????????????????? | | ?????????????????????????????????????????????????? | | ?????????????????????????????????????????????????? | | ?????????????????????????????????????????????????? | | ?????????????????????????????????????????????????? | | ?????????????????????????????????????????????????? | | ?????????????????????????????????????????????????? | | ?????????????????????????????????????????????????? | | ?????????????????????????????????????????????????? | | ?????????????????????????????????????????????????? | | ?????????????????????????????????????????????????? | | ?????????????????????????????????????????????????? | +----------------------------------------------------+ Best States ------------- Heat Dissipation 25 Energy Generation 10 Energy Capacity 250 Matter Stores 300 Matter Capacity 300 Sight Range 16 Terrain Scan Density 10 Evasion (%) 55 Item Schematics ----------------- None Robot Schematics ------------------ None Fabricated ------------ Nothing Repaired ---------- Seismic Detector | 5% | -10/Materials Assault Rifle | 26% | -10/Materials Alien Tech Used ----------------- None Achievements -------------- None Challenges ------------ None Game ------ Seed GhostFlakInterrupter Manual? 0 Play Time 00:08:27 Cumulative 122.8 hours Start 2025.10.02 @ 01:03:10 End 2025.10.02 @ 01:13:02 Sessions 1 Manual Loads 0 Difficulty Rogue Special Mode None Game No. 235 Rogue 233 Adventurer 0 Explorer 2 Win Type - Total 1 Types 1/0/0/0/0/0/0/0/0/0 Lore% 45 Gallery% 51 Achievement% 44 Wizard Run 0 Options --------- Layout 2 ASCII 0 Keyboard 1 Movement Arrows Keybinds 0 Fullscreen 1 Font 28/SmallcapsGlow Map View 50x49 Zoom Use 0% Tactical HUD 1 Map Filters NONE Filters NONE Steam 1 RUN: 0d108950-7dc6-481e-b0a7-7ea457e4cfc5